fUST/lending_fUST_20240424
["ID","MTS","AMOUNT","RATE_DAILY","PERIOD"]
[323377497,1713949843988,-1625.0,0.000148,2]
[323377499,1713949843997,-864.27922487,0.000148,2]
[323377625,1713950268109,51153.85434456,0.000265,120]
[323377630,1713950852978,10000.0,0.00025192,60]
[323377631,1713950870495,7083.0,0.00025,30]
[323377632,1713950923980,330129.94152587,0.00025,30]
[323377660,1713951038772,-1890.36328834,0.00012314,2]
[323377661,1713951038781,-549.6120096,0.00012315,2]
[323377663,1713951038791,-300.0,0.00012322,2]
[323377664,1713951038801,-24419.6267512,0.00012323,2]
[323377665,1713951038810,-9206.71440778,0.00013337,2]
[323377666,1713951038820,-203.53903427,0.00013388,2]
[323377667,1713951038829,-398.1693174,0.00013488,2]
[323377668,1713951038838,-420.0,0.00013522,2]
[323377669,1713951038848,-2767.2418592,0.00013699,2]
[323377670,1713951038857,-5662.453395,0.00013699,2]
[323377671,1713951038866,-40658.1511933,0.00013699,2]
[323377672,1713951038877,-927.87368973,0.00014,2]
[323377673,1713951038886,-968.3784566,0.00014,2]
[323377674,1713951038895,-623.40904665,0.00014175,2]
[323377675,1713951038904,-203.6190757,0.000142,2]
[323377676,1713951038913,-203.6190757,0.000142,2]
[323377677,1713951038922,-153.0,0.00014252,2]
[323377678,1713951038932,-203.583665,0.000146,2]
[323377679,1713951038941,-203.583665,0.000146,2]
[323377680,1713951038950,-203.6190757,0.000146,2]
[323377681,1713951038959,-203.6190757,0.000146,2]
[323377682,1713951038968,-153.43131253,0.00014651,2]
[323377683,1713951038976,-203.583665,0.000147,2]
[323377684,1713951038986,-4257.51478756,0.000147,2]
[323377685,1713951038995,-300.0,0.00014728,2]
[323377686,1713951039004,-168.7343957,0.00014795,2]
[323377687,1713951039013,-743.74012457,0.00014798,2]
[323377688,1713951039022,-154.88152691,0.00014799,2]
[323377689,1713951039032,-205.37035457,0.00014799,2]
[323377690,1713951039041,-204.44216796,0.00014799,2]
[323377691,1713951039050,-219.80780572,0.00014799,2]
[323377692,1713951039061,-151.0,0.000148,2]
[323377693,1713951039072,-151.0,0.000148,2]
[323377694,1713951039083,-226.153105,0.000148,2]
[323377695,1713951039092,-249.3594425,0.000148,2]
[323377696,1713951039101,-151.0,0.000148,2]
[323377697,1713951039112,-203.583665,0.000148,2]
[323377698,1713951039121,-151.0,0.000148,2]
[323377699,1713951039130,-151.0,0.000148,2]
[323377700,1713951039139,-151.0,0.000148,2]
[323377701,1713951039149,-151.0,0.000148,2]
[323377702,1713951039158,-151.0,0.000148,2]
[323377703,1713951039168,-151.0,0.000148,2]
[323377704,1713951039178,-151.0,0.000148,2]
[323377705,1713951039187,-151.0,0.000148,2]
[323377706,1713951039197,-281.473771,0.000148,2]
[323377707,1713951039206,-151.0,0.000148,2]
[323377708,1713951039215,-151.0,0.000148,2]
[323377709,1713951039225,-151.0,0.000148,2]
[323377710,1713951039234,-151.0,0.000148,2]
[323377711,1713951039243,-151.0,0.000148,2]
[323377712,1713951039252,-151.0,0.000148,2]
[323377713,1713951039261,-151.0,0.000148,2]
[323377714,1713951039271,-228.467379,0.000148,2]
[323377715,1713951039281,-371.97038,0.000148,2]
[323377716,1713951039290,-405.9792408,0.000148,2]
[323377717,1713951039299,-219.651066,0.000148,2]
[323377718,1713951039308,-219.651066,0.000148,2]
[323377719,1713951039317,-219.651066,0.000148,2]
[323377720,1713951039327,-219.651066,0.000148,2]
[323377721,1713951039336,-219.651066,0.000148,2]
[323377722,1713951039345,-219.651066,0.000148,2]
[323377723,1713951039354,-219.651066,0.000148,2]
[323377724,1713951039363,-219.651066,0.000148,2]
[323377725,1713951039372,-219.651066,0.000148,2]
[323377726,1713951039381,-219.651066,0.000148,2]
[323377727,1713951039391,-219.651066,0.000148,2]
[323377728,1713951039400,-219.651066,0.000148,2]
[323377729,1713951039409,-219.651066,0.000148,2]
[323377730,1713951039418,-219.651066,0.000148,2]
[323377731,1713951039428,-219.651066,0.000148,2]
[323377732,1713951039437,-219.651066,0.000148,2]
[323377733,1713951039446,-219.651066,0.000148,2]
[323377734,1713951039454,-219.651066,0.000148,2]
[323377735,1713951039463,-219.651066,0.000148,2]
[323377736,1713951039472,-219.651065,0.000148,2]
[323377737,1713951039481,-151.0,0.000148,2]
[323377738,1713951039490,-151.0,0.000148,2]
[323377739,1713951039499,-151.0,0.000148,2]
[323377740,1713951039507,-151.0,0.000148,2]
[323377741,1713951039517,-151.0,0.000148,2]
[323377742,1713951039526,-151.0,0.000148,2]
[323377743,1713951039535,-151.0,0.000148,2]
[323377744,1713951039544,-151.0,0.000148,2]
[323377745,1713951039554,-151.0,0.000148,2]
[323377746,1713951039563,-151.0,0.000148,2]
[323377747,1713951039572,-151.0,0.000148,2]
[323377748,1713951039581,-151.0,0.000148,2]
[323377749,1713951039590,-151.0,0.000148,2]
[323377750,1713951039600,-206.66753,0.000148,2]
[323377751,1713951039609,-407.16733,0.000148,2]
[323377752,1713951039618,-151.0,0.000148,2]
[323377753,1713951039627,-151.0,0.000148,2]
[323377754,1713951039637,-257.826796,0.000148,2]
[323377755,1713951039647,-151.0,0.000148,2]
[323377756,1713951039657,-151.0,0.000148,2]
[323377757,1713951039666,-151.0,0.000148,2]
[323377758,1713951039674,-151.0,0.000148,2]
[323377759,1713951039683,-151.0,0.000148,2]
[323377760,1713951039693,-151.0,0.000148,2]
[323377761,1713951039702,-151.0,0.000148,2]
[323377762,1713951039711,-151.0,0.000148,2]
[323377763,1713951039720,-296.270821,0.000148,2]
[323377764,1713951039729,-151.0,0.000148,2]
[323377765,1713951039738,-156.220205,0.000148,2]
[323377766,1713951039748,-171.367417,0.000148,2]
[323377767,1713951039757,-171.367417,0.000148,2]
[323377768,1713951039767,-171.367417,0.000148,2]
[323377769,1713951039776,-171.367417,0.000148,2]
[323377770,1713951039785,-171.367417,0.000148,2]
[323377771,1713951039795,-171.367417,0.000148,2]
[323377772,1713951039804,-171.367417,0.000148,2]
[323377773,1713951039813,-171.367417,0.000148,2]
[323377774,1713951039822,-171.367417,0.000148,2]
[323377775,1713951039831,-171.367417,0.000148,2]
[323377776,1713951039841,-171.367417,0.000148,2]
[323377777,1713951039851,-171.367417,0.000148,2]
[323377778,1713951039860,-171.367417,0.000148,2]
[323377779,1713951039869,-171.367417,0.000148,2]
[323377780,1713951039878,-171.367417,0.000148,2]
[323377781,1713951039887,-171.367417,0.000148,2]
[323377782,1713951039897,-171.367417,0.000148,2]
[323377783,1713951039906,-171.367417,0.000148,2]
[323377784,1713951039915,-171.367417,0.000148,2]
[323377785,1713951039924,-171.367412,0.000148,2]
[323377786,1713951039933,-199.386657,0.000148,2]
[323377787,1713951039942,-199.386657,0.000148,2]
[323377788,1713951039951,-199.386657,0.000148,2]
[323377789,1713951039960,-199.386657,0.000148,2]
[323377790,1713951039969,-199.386657,0.000148,2]
[323377791,1713951039978,-199.386657,0.000148,2]
[323377792,1713951039987,-199.386657,0.000148,2]
[323377793,1713951039996,-199.386657,0.000148,2]
[323377794,1713951040005,-199.386657,0.000148,2]
[323377795,1713951040014,-199.386657,0.000148,2]
[323377796,1713951040024,-199.386657,0.000148,2]
[323377797,1713951040036,-199.386657,0.000148,2]
[323377798,1713951040045,-199.386657,0.000148,2]
[323377799,1713951040053,-199.386657,0.000148,2]
[323377800,1713951040063,-199.386657,0.000148,2]
[323377801,1713951040230,-199.386657,0.000148,2]
[323377802,1713951040240,-199.386657,0.000148,2]
[323377803,1713951040250,-199.386657,0.000148,2]
[323377804,1713951040259,-199.386657,0.000148,2]
[323377805,1713951040268,-199.386666,0.000148,2]
[323377807,1713951040278,-156.452408,0.000148,2]
[323377809,1713951040287,-6773.07404,0.000148,2]
[323377810,1713951040296,-6773.07404,0.000148,2]
[323377812,1713951040306,-6773.07404,0.000148,2]
[323377814,1713951040315,-6773.07404,0.000148,2]
[323377816,1713951040324,-6773.07404,0.000148,2]
[323377817,1713951040333,-6773.07404,0.000148,2]
[323377819,1713951040342,-6773.07404,0.000148,2]
[323377821,1713951040351,-6773.07404,0.000148,2]
[323377822,1713951040360,-6773.07404,0.000148,2]
[323377824,1713951040370,-6773.07404,0.000148,2]
[323377826,1713951040379,-6773.07404,0.000148,2]
[323377827,1713951040388,-6773.07404,0.000148,2]
[323377829,1713951040399,-6773.07404,0.000148,2]
[323377831,1713951040409,-6773.07404,0.000148,2]
[323377833,1713951040417,-6773.074038,0.000148,2]
[323377835,1713951040426,-156.029954,0.000148,2]
[323377837,1713951040435,-151.0,0.000148,2]
[323377838,1713951040444,-152.171862,0.000148,2]
[323377840,1713951040453,-151.0,0.000148,2]
[323377842,1713951040461,-842.373538,0.000148,2]
[323377843,1713951040470,-842.373538,0.000148,2]
[323377845,1713951040480,-842.373538,0.000148,2]
[323377847,1713951040489,-842.373538,0.000148,2]
[323377849,1713951040498,-842.373538,0.000148,2]
[323377851,1713951040507,-842.373538,0.000148,2]
[323377853,1713951040516,-842.373538,0.000148,2]
[323377854,1713951040526,-842.373538,0.000148,2]
[323377856,1713951040535,-842.373538,0.000148,2]
[323377858,1713951040544,-842.373538,0.000148,2]
[323377859,1713951040553,-842.373538,0.000148,2]
[323377862,1713951040563,-842.373538,0.000148,2]
[323377864,1713951040571,-842.373538,0.000148,2]
[323377866,1713951040581,-842.373538,0.000148,2]
[323377867,1713951040590,-842.373538,0.000148,2]
[323377869,1713951040599,-842.373538,0.000148,2]
[323377870,1713951040607,-842.373538,0.000148,2]
[323377872,1713951040616,-842.373538,0.000148,2]
[323377873,1713951040626,-842.373538,0.000148,2]
[323377874,1713951040635,-842.373539,0.000148,2]
[323377875,1713951040645,-270.350188,0.000148,2]
[323377877,1713951040655,-270.350188,0.000148,2]
[323377878,1713951040664,-270.350188,0.000148,2]
[323377879,1713951040673,-270.350188,0.000148,2]
[323377880,1713951040683,-270.350188,0.000148,2]
[323377881,1713951040692,-270.350188,0.000148,2]
[323377882,1713951040702,-270.350188,0.000148,2]
[323377884,1713951040711,-270.350188,0.000148,2]
[323377886,1713951040720,-270.350188,0.000148,2]
[323377887,1713951040729,-270.350188,0.000148,2]
[323377888,1713951040739,-270.350188,0.000148,2]
[323377889,1713951040748,-270.350188,0.000148,2]
[323377890,1713951040757,-270.350188,0.000148,2]
[323377891,1713951040766,-270.350188,0.000148,2]
[323377892,1713951040776,-270.350188,0.000148,2]
[323377893,1713951040785,-270.350188,0.000148,2]
[323377894,1713951040794,-270.350188,0.000148,2]
[323377895,1713951040803,-270.350188,0.000148,2]
[323377896,1713951040812,-270.350188,0.000148,2]
[323377897,1713951040822,-270.350178,0.000148,2]
[323377898,1713951040831,-520.627411,0.000148,2]
[323377899,1713951040840,-520.627411,0.000148,2]
[323377900,1713951040849,-520.627411,0.000148,2]
[323377901,1713951040858,-520.627411,0.000148,2]
[323377902,1713951040867,-520.627411,0.000148,2]
[323377904,1713951040876,-520.627411,0.000148,2]
[323377905,1713951040885,-520.627411,0.000148,2]
[323377906,1713951040895,-637.448154,0.000148,2]
[323377907,1713951040905,-520.627411,0.000148,2]
[323377908,1713951040914,-637.448154,0.000148,2]
[323377909,1713951040923,-520.627411,0.000148,2]
[323377910,1713951040934,-637.448154,0.000148,2]
[323377911,1713951040943,-637.448154,0.000148,2]
[323377912,1713951040953,-520.627411,0.000148,2]
[323377913,1713951040964,-637.448154,0.000148,2]
[323377914,1713951040973,-520.627411,0.000148,2]
[323377915,1713951040982,-637.448154,0.000148,2]
[323377916,1713951040991,-520.627411,0.000148,2]
[323377917,1713951041001,-637.448154,0.000148,2]
[323377918,1713951041010,-520.627411,0.000148,2]
[323377919,1713951041019,-86.60467928,0.000148,2]
[323377957,1713951296584,265.46820019,0.00014799,7]
[323377958,1713951316534,265.46820019,0.00014049,7]
[323377959,1713951338572,265.46820019,0.00014049,7]
[323377960,1713951354626,279.64669645,0.00014049,7]
[323377966,1713951659110,570.4305627,0.0001096,2]
[323377970,1713951716333,386.07208968,0.0001096,2]
[323377971,1713951730336,399.19815287,0.0001096,2]
[323377979,1713951750090,154.84515485,0.0001096,2]
[323377980,1713951750972,14059.8846026,0.0001096,2]
[323377981,1713951751004,2033.04366893,0.0001096,2]
[323377984,1713951753752,154.84515485,0.0001096,2]
[323377985,1713951758228,154.84515485,0.0001096,2]
[323377988,1713951762440,154.84515485,0.0001096,2]
[323377989,1713951764965,16092.92827153,0.0001096,2]
[323377990,1713951766084,154.84515485,0.0001096,2]
[323377992,1713951767582,154.84515485,0.0001096,2]
[323377994,1713951774217,154.84515485,0.0001096,2]
[323377996,1713951784095,156.74703154,0.0001096,2]
[323377997,1713951784960,13084.95914987,0.0001096,2]
[323377999,1713951787577,154.84515485,0.0001096,2]
[323378001,1713951790216,243.28535524,0.0001096,2]
[323378002,1713951798444,238.37589599,0.0001096,2]
[323378004,1713951803576,156.55812498,0.0001096,2]
[323378005,1713951816770,154.84515485,0.0001096,2]
[323378006,1713951820953,655.53897783,0.0001096,2]
[323378007,1713951820986,11446.33210964,0.0001096,2]
[323378008,1713951834460,177.83642541,0.0001096,2]
[323378009,1713951868465,15000.0,0.00010629,2]
[323378010,1713951868495,9900.0,0.00010629,2]
[323378011,1713951868535,250.0,0.00010629,2]
[323378012,1713951943295,1500.0,0.00011472,2]
[323378015,1713952042865,249.04498924,0.00011472,2]
[323378016,1713952123006,4479.83685924,0.00011472,2]
[323378017,1713952192377,152.62623643,0.00011477,2]
[323378018,1713952220883,7195.9465368,0.0001066,2]
[323378039,1713952232040,-564.5969546,0.00011572,2]
[323378040,1713952232050,-154.84515485,0.00011573,2]
[323378041,1713952232060,-549.6120096,0.00011574,2]
[323378042,1713952232069,-467.17924831,0.00011575,2]
[323378135,1713952237919,-1423.18404003,0.00011575,2]
[323378137,1713952237931,-468.51779384,0.00011575,2]
[323378139,1713952237940,-1575.31939472,0.00011575,2]
[323378141,1713952237950,-983.9184741,0.00011628,2]
[323378143,1713952237959,-300.0,0.00011718,2]
[323378145,1713952237968,-300.0,0.00011718,2]
[323378147,1713952237978,-59169.7357574,0.00011719,2]
[323378149,1713952237986,-231857.98401824,0.0001172,2]
[323378150,1713952237996,-1500.2892457,0.00011733,2]
[323378151,1713952238005,-983.91847407,0.00012396,2]
[323378152,1713952238014,-420.0,0.00012867,2]
[323378153,1713952238023,-420.0,0.00012889,2]
[323378155,1713952238033,-1667.7484584,0.000129,2]
[323378157,1713952238043,-983.91847407,0.00013164,2]
[323378159,1713952238052,-27173.48612767,0.00013699,2]
[323378166,1713952238116,-718.0,0.00013699,2]
[323378262,1713952243187,-3624.56413833,0.00013699,2]
[323378296,1713952246091,-812.3,0.00013699,2]
[323378298,1713952246203,-3318.0,0.00013699,2]
[323378299,1713952248056,154.84515485,0.0001,2]
[323378300,1713952475164,400.0,0.00012,7]
[323378303,1713952723993,564.5969546,0.00011621,2]
[323378304,1713952732018,1208.23455092,0.0001162,2]
[323378305,1713952745570,1727.16849448,0.00011621,2]
[323378306,1713952908340,250.0,0.00010653,2]
[323378307,1713952913280,1017.70022344,0.00010653,2]
[323378308,1713952913311,23882.29977656,0.00010653,2]
[323378309,1713952964103,16092.92827153,0.00010653,2]
[323378310,1713952965110,154.84515485,0.00010653,2]
[323378311,1713952969323,692.82303209,0.00010653,2]
[323378312,1713952971780,154.84515485,0.00010653,2]
[323378313,1713952977466,386.07208968,0.00010653,2]
[323378316,1713952980096,2391.38970798,0.00010653,2]
[323378317,1713952980123,13701.53856355,0.00010653,2]
[323378318,1713952983322,692.82303209,0.00010653,2]
[323378319,1713952987157,155.73731763,0.00010653,2]
[323378320,1713952993459,385.54052612,0.00010653,2]
[323378321,1713952996101,14326.77020931,0.00010653,2]
[323378322,1713953005330,692.82303209,0.00010653,2]
[323378323,1713953025328,692.27580353,0.00010653,2]
[323378324,1713953236837,1500.2892457,0.00010355,2]
[323378326,1713953399951,250.0,0.00010309,2]
[323378327,1713953401988,24900.0,0.00010308,2]
[323378379,1713953432233,-329.68012038,0.00011302,2]
[323378381,1713953432241,-1326.71987962,0.00011303,2]
[323378383,1713953432252,-1156.49478506,0.00011303,2]
[323378386,1713953432264,-3319.44344027,0.00011303,2]
[323378387,1713953432273,-300.0,0.00011303,2]
[323378388,1713953432282,-300.0,0.00011303,2]
[323378389,1713953432291,-1575.31939472,0.00011303,2]
[323378390,1713953432301,-154.84515485,0.00011303,2]
[323378391,1713953432310,-2624.41567605,0.00011304,2]
[323378392,1713953432319,-1890.36328834,0.00011304,2]
[323378393,1713953432329,-564.5969546,0.00011305,2]
[323378394,1713953432338,-549.6120096,0.00011305,2]
[323378395,1713953432347,-1578.51528846,0.00011305,2]
[323378396,1713953432356,-808.5884465,0.00011305,2]
[323378397,1713953432365,-495.4021727,0.00011306,2]
[323378398,1713953432374,-468.51779384,0.00011306,2]
[323378399,1713953432384,-46296.1594355,0.0001131,2]
[323378451,1713953438184,-206.09782636,0.00011301,2]
[323378453,1713953438194,-96.30972832,0.0001131,2]
[323378456,1713953438242,-12777.26659358,0.0001131,2]
[323378458,1713953438251,-327.84255058,0.00011328,2]
[323378459,1713953438261,-1198.17330429,0.00011504,2]
[323378460,1713953438271,-159.45860806,0.00011505,2]
[323378462,1713953438280,-159.45860797,0.00011506,2]
[323378463,1713953438290,-159.45860797,0.00011507,2]
[323378465,1713953438300,-159.45860797,0.00011508,2]
[323378467,1713953438311,-159.45860797,0.00011509,2]
[323378469,1713953438321,-159.45860797,0.0001151,2]
[323378471,1713953438330,-159.45860797,0.00011511,2]
[323378473,1713953438340,-159.45860797,0.00011512,2]
[323378475,1713953438350,-159.45860797,0.00011513,2]
[323378477,1713953438359,-159.45860797,0.00011514,2]
[323378479,1713953438368,-159.45860797,0.00011515,2]
[323378481,1713953438378,-159.45860797,0.00011516,2]
[323378483,1713953438387,-159.45860797,0.00011517,2]
[323378485,1713953438397,-159.45860797,0.00011518,2]
[323378487,1713953438406,-159.45860797,0.00011519,2]
[323378489,1713953438415,-159.45860797,0.0001152,2]
[323378491,1713953438426,-310950.21604215,0.0001152,2]
[323378625,1713953440192,-1571.29018638,0.0001152,2]
[323378636,1713953443203,-97517.13681767,0.0001152,2]
[323378637,1713953443213,-983.9184741,0.00011521,2]
[323378638,1713953443223,-159.45860797,0.00011521,2]
[323378639,1713953443235,-775.48245233,0.00011603,2]
[323378640,1713953443245,-523.39465923,0.00011617,2]
[323378641,1713953443255,-212.66713007,0.00011617,2]
[323378642,1713953443264,-194.17909869,0.00011617,2]
[323378643,1713953443274,-1094.0051933,0.00011617,2]
[323378645,1713953443283,-539.84959505,0.00011617,2]
[323378646,1713953443292,-302.83024787,0.00011617,2]
[323378647,1713953443302,-1010.61174323,0.00011617,2]
[323378648,1713953443310,-158.29111282,0.00011617,2]
[323378649,1713953443319,-284.31035395,0.00011617,2]
[323378650,1713953443329,-935.26586598,0.00011617,2]
[323378651,1713953443338,-180.75360744,0.00011621,2]
[323378652,1713953443347,-154.84515485,0.00011751,2]
[323378653,1713953443357,-197.49701762,0.00012,2]
[323378654,1713953443366,-154.91024305,0.00012,2]
[323378655,1713953443376,-983.91847407,0.00012085,2]
[323378656,1713953443385,-420.0,0.00012417,2]
[323378657,1713953443394,-420.0,0.00012433,2]
[323378658,1713953443404,-1741.87458795,0.000125,2]
[323378659,1713953443413,-983.91847407,0.00012648,2]
[323378660,1713953443422,-983.91847407,0.00013212,2]
[323378661,1713953443431,-587.0,0.00013641,2]
[323378662,1713953443440,-587.0,0.00013677,2]
[323378664,1713953443449,-266.38413345,0.00013696,7]
[323378667,1713953443458,-50480.3243094,0.00013699,2]
[323378670,1713953443467,-7190.200054,0.00013699,2]
[323378673,1713953443476,-3000.0,0.00013699,2]
[323378676,1713953443486,-983.91847407,0.00013775,2]
[323378678,1713953443496,-927.87368973,0.00014,2]
[323378681,1713953443505,-968.3784566,0.00014,2]
[323378683,1713953443514,-208.45825711,0.00014048,2]
[323378686,1713953443523,-743.74012457,0.00014048,2]
[323378689,1713953443533,-154.88152691,0.00014048,2]
[323378692,1713953443542,-219.80780572,0.00014048,2]
[323378695,1713953443551,-205.37035457,0.00014048,2]
[323378697,1713953443560,-204.44216796,0.00014048,2]
[323378699,1713953443570,-287.3440077,0.00014049,2]
[323378701,1713953443579,-623.40904665,0.0001414,2]
[323378703,1713953443588,-321.7343957,0.00014356,2]
[323378705,1713953443597,-153.0,0.00014521,2]
[323378707,1713953443608,-153.0,0.00014521,2]
[323378709,1713953443617,-153.43131252,0.00014651,2]
[323378710,1713953443627,-140000.0,0.000147,2]
[323378711,1713953443637,-151.0,0.000147,2]
[323378712,1713953443646,-278.85994,0.000147,2]
[323378713,1713953443655,-278.85994,0.000147,2]
[323378714,1713953443664,-1389.587346,0.000147,2]
[323378715,1713953443675,-1389.587346,0.000147,2]
[323378716,1713953443684,-154.84515485,0.00014798,2]
[323378717,1713953443695,-1205.94096994,0.00014798,2]
[323378718,1713953443705,-476.16164115,0.00014798,2]
[323378719,1713953443714,-1394.46359454,0.00014798,2]
[323378720,1713953443724,-155.15831989,0.00014798,2]
[323378721,1713953443735,-1090.69349813,0.00014799,2]
[323378722,1713953443744,-1685.92695564,0.00014799,2]
[323378723,1713953443752,-112492.2119944,0.00014799,2]
[323378724,1713953443761,-842.373538,0.000148,2]
[323378725,1713953443771,-842.373538,0.000148,2]
[323378726,1713953443780,-842.373538,0.000148,2]
[323378727,1713953443790,-842.373538,0.000148,2]
[323378728,1713953443800,-842.373538,0.000148,2]
[323378729,1713953443810,-842.373538,0.000148,2]
[323378730,1713953443824,-842.373538,0.000148,2]
[323378731,1713953443834,-842.373538,0.000148,2]
[323378732,1713953443843,-842.373538,0.000148,2]
[323378733,1713953443852,-842.373538,0.000148,2]
[323378734,1713953443864,-842.373538,0.000148,2]
[323378735,1713953443873,-842.373538,0.000148,2]
[323378736,1713953443883,-842.373538,0.000148,2]
[323378737,1713953443892,-842.373538,0.000148,2]
[323378738,1713953443901,-842.373538,0.000148,2]
[323378739,1713953443910,-842.373538,0.000148,2]
[323378740,1713953443920,-842.373538,0.000148,2]
[323378741,1713953443929,-842.373538,0.000148,2]
[323378742,1713953443938,-156.452408,0.000148,2]
[323378743,1713953443947,-151.0,0.000148,2]
[323378744,1713953443956,-151.0,0.000148,2]
[323378745,1713953443965,-151.0,0.000148,2]
[323378746,1713953443974,-151.0,0.000148,2]
[323378747,1713953443983,-151.0,0.000148,2]
[323378748,1713953443992,-151.0,0.000148,2]
[323378749,1713953444001,-151.0,0.000148,2]
[323378750,1713953444010,-151.0,0.000148,2]
[323378751,1713953444019,-228.467379,0.000148,2]
[323378752,1713953444029,-151.0,0.000148,2]
[323378753,1713953444038,-151.0,0.000148,2]
[323378754,1713953444047,-257.826796,0.000148,2]
[323378755,1713953444056,-151.0,0.000148,2]
[323378756,1713953444066,-151.0,0.000148,2]
[323378757,1713953444075,-151.0,0.000148,2]
[323378758,1713953444086,-226.153105,0.000148,2]
[323378759,1713953444095,-151.0,0.000148,2]
[323378760,1713953444105,-151.0,0.000148,2]
[323378761,1713953444115,-151.0,0.000148,2]
[323378762,1713953444124,-151.0,0.000148,2]
[323378763,1713953444133,-151.0,0.000148,2]
[323378764,1713953444143,-151.0,0.000148,2]
[323378765,1713953444153,-151.0,0.000148,2]
[323378766,1713953444164,-296.270821,0.000148,2]
[323378767,1713953444174,-151.0,0.000148,2]
[323378768,1713953444183,-151.0,0.000148,2]
[323378769,1713953444194,-151.0,0.000148,2]
[323378770,1713953444203,-151.0,0.000148,2]
[323378771,1713953444212,-151.0,0.000148,2]
[323378772,1713953444357,-151.0,0.000148,2]
[323378773,1713953444368,-151.0,0.000148,2]
[323378774,1713953444378,-151.0,0.000148,2]
[323378775,1713953444387,-151.0,0.000148,2]
[323378776,1713953444397,-151.0,0.000148,2]
[323378777,1713953444406,-151.0,0.000148,2]
[323378778,1713953444415,-151.0,0.000148,2]
[323378779,1713953444424,-206.66753,0.000148,2]
[323378780,1713953444433,-151.0,0.000148,2]
[323378781,1713953444442,-151.0,0.000148,2]
[323378782,1713953444451,-151.0,0.000148,2]
[323378783,1713953444460,-151.0,0.000148,2]
[323378784,1713953444469,-151.0,0.000148,2]
[323378785,1713953444478,-151.0,0.000148,2]
[323378786,1713953444488,-151.0,0.000148,2]
[323378787,1713953444498,-151.0,0.000148,2]
[323378788,1713953444507,-171.367417,0.000148,2]
[323378789,1713953444516,-171.367417,0.000148,2]
[323378790,1713953444525,-171.367417,0.000148,2]
[323378791,1713953444537,-156.029954,0.000148,2]
[323378792,1713953444547,-171.367417,0.000148,2]
[323378793,1713953444557,-171.367417,0.000148,2]
[323378794,1713953444566,-171.367417,0.000148,2]
[323378795,1713953444576,-171.367417,0.000148,2]
[323378796,1713953444585,-171.367417,0.000148,2]
[323378797,1713953444596,-171.367417,0.000148,2]
[323378798,1713953444605,-171.367417,0.000148,2]
[323378799,1713953444614,-171.367417,0.000148,2]
[323378800,1713953444623,-171.367417,0.000148,2]
[323378801,1713953444633,-171.367417,0.000148,2]
[323378802,1713953444642,-171.367417,0.000148,2]
[323378803,1713953444651,-171.367417,0.000148,2]
[323378804,1713953444660,-171.367417,0.000148,2]
[323378805,1713953444669,-171.367417,0.000148,2]
[323378806,1713953444678,-171.367417,0.000148,2]
[323378807,1713953444687,-171.367417,0.000148,2]
[323378808,1713953444696,-171.367412,0.000148,2]
[323378809,1713953444706,-151.0,0.000148,2]
[323378810,1713953444715,-151.0,0.000148,2]